Cogmind - Beta 9.6 @@@ ROGUE MODE // 2020.05.04 @ 11:49:45 Player: alice_fexa Result: Destroyed by as-46322 with Assembled Blade Performance ------------- Evolutions (0) 0 Regions Visited (2) 400 Robots Destroyed (24) 120 Value Destroyed (235) 235 Prototype IDs (6) 120 Alien Tech Used (0) 0 Bonus (0) 0 TOTAL SCORE: 875 Bonus ------- None Cogmind --------- Core Integrity 0/250 Matter 300/300 Energy 265/265 System Corruption 7% Temperature Cool (0) Movement Rolling (120) Ox4 Location -10/Mines Parts ------- > --- POWER (1) -------- Improved Ion Engine > --- PROPULSION (2) --- Light Treads Wheel > --- UTILITY (2) ------ Large Storage Unit Large Storage Unit > --- WEAPON (2) ------- EM Shotgun Particle Gun > --- INVENTORY (16) --- Improved Ion Engine Improved Ion Engine Improved Ion Engine Light Treads Light Treads Wheel Heat Sink Small Storage Unit Weight Redist. System Improved Signal Interpreter EM Shotgun EM Shotgun Bore Cannon Makeshift Spear Heavy Explosive Trap Peak State ------------ > --- POWER ------------ Improved Ion Engine > --- PROPULSION ------- Light Treads Wheel > --- UTILITY ---------- Large Storage Unit Large Storage Unit > --- WEAPON ----------- EM Shotgun Particle Gun > --- INVENTORY -------- Improved Ion Engine Improved Ion Engine Improved Ion Engine Light Treads Light Treads Wheel Wheel Heat Sink Small Storage Unit Weight Redist. System Improved Signal Interpreter EM Shotgun EM Shotgun Bore Cannon Makeshift Spear Heavy Explosive Trap [Rating: 13] Favorites ----------- Power Improved Ion Engine Engine Improved Ion Engine Propulsion Light Treads Treads Light Treads Wheel Compact Wheel Utility Large Storage Unit Storage Large Storage Unit Protection Light Armor Plating Weapon Light Assault Rifle Energy Gun EM Shotgun Ballistic Gun Light Assault Rifle Build | -11 -10 -10 ------- Run | Scr Mat Min Slots Evolved . | . . . Power . | . . . Propulsion . | . . . Utility . | . . . Weapon . | . . . Parts Attached 30 | 6 16 8 Power 5 | 1 4 . Engine 5 | 1 4 . Core . | . . . Reactor . | . . . Propulsion 12 | 2 4 6 Treads 2 | 1 1 . Leg . | . . . Wheel 10 | 1 3 6 Hover . | . . . Flight . | . . . Utility 5 | 1 4 . Device . | . . . Storage 4 | 1 3 . Processor . | . . . Hackware . | . . . Protection 1 | . 1 . Artifact . | . . . Weapon 8 | 2 4 2 Energy Gun 2 | . . 2 Energy Cannon . | . . . Ballistic Gun 6 | 2 4 . Ballistic Cannon . | . . . Launcher . | . . . Special Weapon . | . . . Impact Weapon . | . . . Slashing Weapon . | . . . Piercing Weapon . | . . . Special Melee Weapon . | . . . Unidentified Prototypes . | . . . Parts Lost 9 | . 5 4 Power 1 | . 1 . Propulsion 4 | . 2 2 Utility . | . . . Weapon 4 | . 2 2 Highest Loss Streak 3 | . 3 1 Average Slot Usage (%) 99 | . 98 99 Engine 13 | . 13 14 Treads 14 | . 14 14 Wheel 13 | . 13 13 Storage 26 | . 24 28 Protection 1 | . 2 . Energy Gun 1 | . . 3 Ballistic Gun 26 | . 27 24 Naked Turns . | . . . Heaviest Build 45 | 9 42 45 Greatest Support 20 | 16 20 20 Greatest Overweight (x) 4 | . 2 4 Average Overweight (x) 1 | . . 2 Largest Inventory Capacity 16 | 6 16 16 Average Capacity 13 | 5 11 16 Most Carried 16 | 4 16 16 Average Carried 13 | 2 10 15 Final Capacity 16 | 6 16 16 Final Carried 16 | 4 16 15 Class Distribution -------------------- 96% | Mutant 3% | Scavenger-Mutant Dominant Class ---------------- Mutant | -10/Materials Mutant | -10/Mines Resources | -11 -10 -10 ----------- Run | Scr Mat Min Matter Collected 793 | 237 337 219 Remotely . | . . . Salvage Created 593 | . 453 140 Parts 22 | . 22 . Haulers Intercepted 2 | . 2 . Recyclers Shooed . | . . . Parts Field Recycled . | . . . Retrieved Matter . | . . . Parts Self-Destructed . | . . . Prevented . | . . . Kills | -11 -10 -10 ------- Run | Scr Mat Min Combat Hostiles Destroyed 20 | . 9 11 Guns 20 | . 9 11 Classes Destroyed 6 | . 5 1 Hauler 2 | . 2 . Recycler 1 | . 1 . Mechanic 1 | . 1 . Swarmer 5 | . 5 . Grunt 4 | . 4 . Assembled 11 | . . 11 Best Kill Streak 4 | . 4 2 Combat Bots Only 2 | . 2 2 Max Kills in Single Turn 1 | . 1 1 Gunslinging . | . . . Exploded . | . . . Melee . | . . . Uniques/NPCs Destroyed . | . . . Combat | -11 -10 -10 -------- Run | Scr Mat Min Damage Taken 1325 | . 633 692 Core 256 | . 96 160 Absorbed by Shields . | . . . Core Remaining (%) 100 | 100 . . Volleys Fired 117 | . 73 44 Largest 2 | . 2 2 Hottest 110 | . 40 110 Shots Fired 227 | . 145 82 Gun 227 | . 145 82 Cannon . | . . . Launcher . | . . . Special . | . . . Kinetic 210 | . 145 65 Thermal 4 | . . 4 Explosive . | . . . Electromagnetic 13 | . . 13 Robot Hit Streak 21 | . 21 6 Robot Miss Streak 6 | . 5 6 Penetration Max . | . . . Secondary Targets 3 | . . 3 Max Gunslinging Chain 1 | . . 1 Shots Hit Robots 126 | . 88 38 Core Hits 51 | . 28 23 Critical Hits 2 | . 2 . Critical Kills . | . . . Critical Parts Destroyed 2 | . 2 . Melee Attacks . | . . . Impact . | . . . Slashing . | . . . Piercing . | . . . Sneak Attacks . | . . . Combat Hostiles . | . . . Follow-up Attacks . | . . . Damage Inflicted 1190 | . 751 439 Guns 1190 | . 751 439 Cannons . | . . . Explosions . | . . . Melee . | . . . Ramming . | . . . Kinetic 1064 | . 751 313 Thermal 48 | . . 48 Explosive . | . . . Electromagnetic 78 | . . 78 Impact . | . . . Slashing . | . . . Piercing . | . . . Highest Corruption 7 | . . 7 Average Corruption 3 | . . 3 Corruption Purged . | . . . Effects 14 | . . 14 Message Errors 2 | . . 2 Matter Fused 1 | . . 1 Heat Flow Errors 1 | . . 1 Data Loss (minor) 2 | . . 2 Targeting Errors 7 | . . 7 Weapon Failures 1 | . . 1 Overload Shots . | . . . Overflow Damage . | . . . Projectiles . | . . . Explosions . | . . . Melee . | . . . Knockbacks . | . . . Impact . | . . . Kinetic . | . . . Secondary . | . . . Self-Inflicted Damage . | . . . Shots . | . . . Rammed . | . . . Targets Rammed . | . . . Kicked . | . . . Crushed . | . . . Highest Temperature 289 | . 25 289 Average Temperature 28 | . 6 45 Received Heat Transfer 532 | . 192 340 Effects 1 | . . 1 Energy Bleed 1 | . . 1 Siege Activations . | . . . Robots Corrupted . | . . . Combat Hostiles . | . . . Parts Fried . | . . . Impact Corruptions . | . . . Robots Melted . | . . . Combat Hostiles . | . . . Parts Melted . | . . . Heat Transferred 111 | . . 111 Parts Sabotaged . | . . . Parts Stolen . | . . . Parts Stripped . | . . . Power Chain Reactions . | . . . Missiles Intercepted . | . . . Alert | -11 -10 -10 ------- Run | Scr Mat Min Peak Influence 105 | . 105 40 Average Influence 31 | . 48 15 Maximum Alert Level . | . . . Low Security (%) 100 | 100 100 100 Level 1 . | . . . Level 2 . | . . . Level 3 . | . . . Level 4 . | . . . Level 5 . | . . . High Security . | . . . Max Security . | . . . Squads Dispatched . | . . . Investigation . | . . . Extermination . | . . . Reinforcement . | . . . Assault . | . . . Garrison . | . . . Intercept . | . . . Construction Impeded . | . . . Haulers Reinforced . | . . . Stealth | -11 -10 -10 --------- Run | Scr Mat Min Distress Signals 1 | . 1 . Communications Jammed . | . . . Distress Signals . | . . . Times Spotted 46 | . 25 21 Peak Tracking Total 7 | . 3 7 Tactical Retreats 5 | . 2 3 Traps | -11 -10 -10 ------- Run | Scr Mat Min Traps Triggered . | . . . Indirectly . | . . . Trap Hack Attempts . | . . . Triggered . | . . . Disarmed . | . . . Reprogrammed . | . . . Reused . | . . . Traps Extracted . | . . . Installed . | . . . Triggered . | . . . Machines | -11 -10 -10 ---------- Run | Scr Mat Min Machines Disabled . | . . . Max in Single Turn . | . . . Machines Sabotaged . | . . . Garrisons Compromised . | . . . Overloaded Fab Kills . | . . . Fab Network Shutdowns . | . . . Hacking | -11 -10 -10 --------- Run | Scr Mat Min Machines Accessed 9 | . 9 . Terminals 7 | . 7 . Fabricators . | . . . Repair Stations . | . . . Recycling Units 2 | . 2 . Scanalyzers . | . . . Garrison Access . | . . . Total Hacks 35 | . 35 . Successful 23 | . 23 . Failed 12 | . 12 . Catastrophic . | . . . Database Lockouts . | . . . Manual 24 | . 24 . Terminals 32 | . 32 . Fabricators . | . . . Repair Stations . | . . . Recycling Units 3 | . 3 . Scanalyzers . | . . . Garrison Access . | . . . Terminal Hacks 14 | . 14 . Prototype ID Bank 5 | . 5 . Terminal Index 1 | . 1 . Alert Level 1 | . 1 . Unreport Threat 1 | . 1 . Locate Traps 4 | . 4 . Registered Components 1 | . 1 . Zone Layout 1 | . 1 . Fabricator Hacks . | . . . Repair Station Hacks . | . . . Recycling Unit Hacks 3 | . 3 . Report Inventory 2 | . 2 . Retrieve Components 1 | . 1 . Scanalyzer . | . . . Garrison Access Hacks . | . . . Unauthorized Hacks 6 | . 6 . Terminals 6 | . 6 . Track 2 | . 2 . Assimilate 1 | . 1 . Botnet 2 | . 2 . Operators 1 | . 1 . Fabricators . | . . . Repair Stations . | . . . Recycling Units . | . . . Scanalyzers . | . . . Garrison Access . | . . . Data Cores Recovered . | . . . Used . | . . . Hacking Detections 9 | . 9 . Full Trace Events . | . . . Feedback Events . | . . . Feedback Blocked . | . . . Robot Schematics Acquired . | . . . Robots Built . | . . . Matter . | . . . Time . | . . . Total Robot Build Rating . | . . . Part Schematics Acquired . | . . . Parts Built . | . . . Matter . | . . . Time . | . . . Total Part Build Rating . | . . . Parts Repaired . | . . . Time . | . . . Parts Recycled . | . . . Recycled Matter . | . . . Retrieved Matter . | . . . Retrieved Components 2 | . 2 . Parts Scanalyzed . | . . . Part Schematics Acquired . | . . . Parts Damaged . | . . . Bothacking | -11 -10 -10 ------------ Run | Scr Mat Min Used RIF Installer . | . . . Robots Hacked . | . . . Non-combat . | . . . Combat . | . . . Robot Hacks Applied . | . . . Relay Couplers Released . | . . . Robots Rewired . | . . . Allies Hacked . | . . . Hacks Repelled . | . . . Allies | -11 -10 -10 -------- Run | Scr Mat Min Total Allies 1 | . 1 . Largest Group 1 | . 1 . Highest-Rated Group 10 | . 10 . Highest-Rated Ally 10 | . 10 . Total Orders . | . . . Ally Attacks . | . . . Total Damage . | . . . Kills . | . . . Allies Corrupted . | . . . Allies Melted . | . . . Intel | -11 -10 -10 ------- Run | Scr Mat Min Robot Analysis Total . | . . . Derelict Logs Recovered . | . . . Drone Launches . | . . . Drone Recoveries . | . . . Exploration | -11 -10 -10 ------------- Run | Scr Mat Min Turns Passed 2163 | 44 1072 1047 Spaces Moved 1271 | 32 677 562 Core 1 | 1 . . Treads 82 | . 79 3 Legs . | . . . Wheels 1188 | 31 598 559 Hover . | . . . Flight . | . . . Fastest Speed 50 | 50 90 120 Average Speed 117 | 98 116 120 Slowest Speed 200 | 100 200 200 Overloaded Moves . | . . . Propulsion Burnouts . | . . . Robots Hopped . | . . . Cave-ins Triggered . | . . . Exploration Rate (%) 51 | 3 95 56 Regions Visited 2 Branch Regions 1 Pre-discovered Areas . | . . . Known Exits Taken . | . . . Unknown Exits Taken 2 | 1 1 . Scrap Searched 1 | . . 1 Spaces Dug . | . . . Terrain Destroyed . | . . . Melee . | . . . Projectile . | . . . AOE . | . . . Actions | -11 -10 -10 --------- Run | Scr Mat Min Total 1752 | 41 855 856 Wait 281 | . 47 234 Move 1269 | 31 676 562 Hop . | . . . Pick Up 32 | 4 25 3 Fast Attach 10 | 6 3 1 Attach 7 | . 4 3 Detach . | . . . Swap 13 | . 9 4 Drop 23 | . 18 5 Fire 117 | . 73 44 Melee . | . . . Ram . | . . . Kick . | . . . Crush . | . . . Escape Stasis . | . . . Rewire . | . . . Trap . | . . . Miscellaneous . | . . . Route ------- -11/Scrapyard -10/Materials (discovered 3 exits: [*Mat x2] / [*Min]) -10/Mines (discovered 1 exit: [*Mat]) History --------- Turn | Location | Event 12 | -11/Scrapyard | Discovered new exit (range 16) 45 | -11/Scrapyard | Entered Materials 250 | -10/Materials | Discovered new exit (range 8) 307 | -10/Materials | Build established: Mutant 460 | -10/Materials | Discovered new exit (range 5) 549 | -10/Materials | Discovered new exit (range 14) 710 | -10/Materials | Lost 3 parts (1p1n1w) 1117 | -10/Materials | Entered Mines 1174 | -10/Mines | Found a hidden stash of uninstalled traps 1429 | -10/Mines | Discovered new exit (range 9) 1573 | -10/Mines | Assembled infested the area 1578 | -10/Mines | Assisted by a Guerilla fighting off Assembled 1621 | -10/Mines | A weapon hastily lodged in a ceiling crevice suddenly fell to the ground 1893 | -10/Mines | Core integrity fell below 50% 1950 | -10/Mines | Core integrity fell below 20% 2164 | -10/Mines | Destroyed by as-46322 with Assembled Blade Last Messages --------------- 02086_ Acquired 3 matter. 02088_ Dropped Wheel. 02101_ Assault Rifle destroyed. 02101_ System corrupted by crushing effect (+4). 02104_ as-18083 destroyed. 02107_ Acquired 13 matter. 02113_ Acquired 5 matter. 02115_ System corrupted: Particle Gun targeting data glitched. 02121_ Destroyed Asb. Hover Unit. 02121_ as-23464 destroyed. 02126_ System corrupted: Heat flow error (+193). 02130_ K-01 Serf collects debris. 02131_ Overheating: Energy bleed (-60). 02134_ K-01 Serf collects debris. 02147_ K-01 Serf cleans the Seismic Survey Station. 02150_ System corrupted: Component data lost. 02152_ Acquired Bore Cannon. 02153_ K-01 Serf cleans the Seismic Survey Station. 02160_ Wheel destroyed. 02161_ Acquired 10 matter. Map ----- +----------------------------------------------------+ | ????????????????????????# #?# #### | | ????????????????????????## ## #### ##### | | ?????????????????????????#### ### ##?# ## | | ????????????????????????????# #??####??# ## | | ????????????????????????????# #????????# """ #? | | ????????????????????????????# ####?????# """ #? | | ????????????????????????????# ##????# """ #? | | ????????????????????????????# #????# #? | | ????????????????????????????# ##???## #####? | | ????????????????????????????## | ##???# #????? | | ?????????????????????????????##% ##### #????? | | ??????????????????????????????# #????? | | ??????????????????????????????## ####* ###### | | ???????????????????????????????###[ #??#! ! | | ?????????????????????????????????## #### !###### | | ??????????????????????????????????# ##*!%!#?#### | | ??????????????????????????????????## ###==##### # | | ????????????????????????????????########!%####* | | ??????????????????#?????????????# |=% =!=%*=%=% | | ??????????????????! ????????????# *%|!!###%!*== | | ???????????????????%????????????# ########?# === | | ???????????????????#=???????##### ##???????## | | ???????????????????#%???????#= #????????## | | ???????????????????#|%??????#!=""" #?????????# " | | ???????????????????#=*#######%*""" #?????????## " | | ???????????????????#!a%aa@%% !!""" #??????????# " | | ???????????????????#!a#######=% #??????????# | | ???????????????????#!%??????#########??????????# | | ???????????????????#%??????????????????????????# # | | ???????????????????%=??????????????????????????# # | | ??????????????????*%???????????????????????????# # | | ?????????????????=%%???????????????????????????# # | | ????????????????%*=???????????????????????????## # | | ???????????????=!!!??????????????????????????##|% | | ???????????????#=%???????????????????????????# | | ???????????????###???????????????????????????# | | ?????????????????????????????????????????????## | | ??????????????????????????????????????????????## | | ???????????????????????????????????????????????### | | ?????????????????????????????????????????????????? | | ?????????????????????????????????????????????????? | | ?????????????????????????????????????????????????? | | ?????????????????????????????????????????????????? | | ?????????????????????????????????????????????????? | | ?????????????????????????????????????????????????? | | ?????????????????????????????????????????????????? | | ?????????????????????????????????????????????????? | | ?????????????????????????????????????????????????? | | ?????????????????????????????????????????????????? | | ?????????????????????????????????????????????????? | +----------------------------------------------------+ Best States ------------- Heat Dissipation 25 Energy Generation 12 Energy Capacity 265 Matter Stores 300 Matter Capacity 300 Sight Range 16 Terrain Scan Density 10 Armor Coverage 150 Evasion (%) 42 Recoil Reduction 1 Item Schematics ----------------- None Robot Schematics ------------------ None Fabricated ------------ Nothing Alien Tech Used ----------------- None Achievements -------------- None Challenges ------------ None Game ------ Seed MediumGodCoupler Manual? 0 Play Time 00:12:06 Cumulative 823.5 hours Start 2020.05.04 @ 11:37:14 End 2020.05.04 @ 11:49:45 Sessions 1 Manual Loads 0 Difficulty Rogue Special Mode None Game No. 697 Rogue 657 Adventurer 40 Explorer 0 Win Type - Total 81 Types 52/2/19/2/1/2/3 Lore% 93 Gallery% 96 Achievement% 78 Wizard Run 0 Options --------- ASCII 0 Keyboard 0 Movement Numpad Keybinds 0 Fullscreen 0 Font 16/Terminus Map View 76x50 Tactical HUD 1 Map Filters NONE Filters NONE Steam 1 RUN: 9a33464d-103d-4732-9d17-55f8c3dba272